bitfinex-derivatives/quotes_ETHF0:USTF0_20241230
["timestamp","ask_amount","ask_price","bid_price","bid_amount"]
[1735544846425,0.4261,3421.5,3421.0,0.4243]
[1735544846625,0.29283,3421.3,3420.9,3.50066]
[1735544848330,0.4261,3421.5,3420.9,3.2078]
[1735544848527,2.33459598,3421.3,3420.9,3.2078]
[1735544848733,3.2078,3421.0,3420.5,0.29289]
[1735544848921,3.2078,3421.0,3420.4,3.2078]
[1735544848922,0.4217,3420.9,3420.6,0.29288]
[1735544849522,3.2078,3421.0,3420.5,0.4331]
[1735544849728,3.2078,3421.0,3420.9,0.29286]
[1735544850733,0.4261,3421.5,3420.7,2.33459598]
[1735544850734,3.6339,3421.5,3421.3,0.29283]
[1735544851029,3.2078,3421.5,3421.3,0.29283]
[1735544853132,3.50057,3422.0,3421.6,0.2928]
[1735544853332,3.2078,3422.0,3421.7,0.29279]
[1735544853635,3.2078,3422.0,3421.6,0.2928]
[1735544853830,3.50058,3422.0,3421.6,0.2928]
[1735544854538,3.2078,3422.0,3421.3,3.64629598]
[1735544854733,3.2078,3422.0,3421.9,0.29278]
[1735544855035,2.28398282,3422.1,3421.9,0.29278]
[1735544855240,3.00082282,3422.3,3421.9,0.29278]
[1735544855741,2.70808282,3422.3,3422.0,0.29276]
[1735544856236,2.28398282,3422.3,3422.0,0.29276]
[1735544856436,2.57673282,3422.3,3422.1,0.4537]
[1735544856636,0.29275,3422.3,3422.1,0.4537]
[1735544857436,0.29274,3422.4,3422.1,0.4537]
[1735544858230,0.29275,3422.3,3422.1,0.4537]
[1735544858434,5.49178282,3422.5,3422.1,0.4537]
[1735544858644,2.28398282,3422.4,3422.1,0.4537]
[1735544859137,2.57672282,3422.4,3422.1,0.4537]
[1735544859537,2.28398282,3422.4,3422.1,0.4537]
[1735544859844,0.29275,3422.3,3422.1,0.4537]
[1735544861038,2.57672282,3422.4,3422.1,0.74646]
[1735544861237,2.57672282,3422.4,3422.1,0.4537]
[1735544861839,2.57672282,3422.4,3422.1,0.74646]
[1735544862039,2.57672282,3422.4,3422.1,0.4537]
[1735544863139,2.28398282,3422.4,3422.1,0.74646]
[1735544863343,2.28398282,3422.4,3422.3,0.29274]
[1735544865041,2.28398282,3422.8,3422.2,3.20799598]
[1735544865239,2.28398282,3422.8,3422.5,0.29272]
[1735544865440,2.28398282,3422.8,3422.7,0.29271]
[1735544866244,5.49178282,3422.9,3422.2,3.20799598]
[1735544866547,5.49178282,3422.9,3422.8,0.2927]
[1735544870252,3.2078,3422.9,3422.8,0.2927]
[1735544872651,5.49178282,3422.9,3422.8,0.2927]
[1735544874053,3.2078,3422.9,3422.8,0.2927]
[1735544874948,2.28398282,3423.0,3422.5,5.54239598]
[1735544875255,2.28398282,3423.0,3422.9,0.2927]
[1735544876955,2.28398282,3423.3,3423.2,0.29269]
[1735544877752,5.49178282,3423.3,3423.2,0.29269]
[1735544879858,5.49178282,3423.3,3422.8,3.63928598]
[1735544880154,5.49178282,3423.3,3423.2,0.29269]
[1735544880557,0.29269,3423.2,3422.8,1.59751]
[1735544880751,0.2927,3423.0,3422.8,1.59752]
[1735544881158,0.7126,3423.1,3422.8,1.59752]
[1735544881651,0.2927,3423.0,3422.8,1.14731]
[1735544882257,0.29274,3422.7,3422.1,4.3768]
[1735544882458,0.29274,3422.7,3422.2,0.4272]
[1735544882847,3.2078,3422.9,3422.2,0.4272]
[1735544883052,3.2078,3422.9,3422.2,2.76179598]
[1735544883656,3.2078,3422.9,3422.8,0.29272]
[1735544885364,3.42827849,3423.1,3422.5,5.54239598]
[1735544885565,3.42827849,3423.1,3423.0,0.2927]
[1735544886472,2.2870362,3423.1,3423.0,0.2927]
[1735544887570,3.2078,3423.3,3423.2,0.29269]
[1735544889263,7.07527039,3423.3,3423.2,0.29269]
[1735544889858,7.07527039,3423.3,3422.7,0.8373]
[1735544890073,7.07527039,3423.3,3422.7,0.83719]
[1735544890365,7.07527039,3423.3,3423.2,0.29269]
[1735544890871,3.2078,3423.3,3423.2,0.29269]
[1735544895471,3.2078,3423.3,3423.0,0.23731282]
[1735544895770,3.2078,3423.3,3423.2,0.29269]
[1735544897868,3.64698564,3423.3,3422.5,3.2078]
[1735544898073,2.33459598,3423.2,3422.5,3.2078]
[1735544898273,0.4185,3423.1,3422.5,3.2078]
[1735544898472,0.29272,3422.8,3422.5,3.50054]
[1735544899375,3.43580029,3422.6,3422.5,3.50055]
[1735544900071,3.43580029,3422.6,3422.5,0.29275]
[1735544900376,0.29275,3422.5,3422.2,0.29277]
[1735544900572,3.2078,3422.4,3422.0,5.00097433]
[1735544900775,3.2078,3422.4,3422.3,0.29276]
[1735544901872,7.08278593,3422.4,3422.3,0.29276]
[1735544902271,7.08278593,3422.4,3422.2,0.29276]
[1735544902869,7.08278593,3422.4,3422.3,0.29276]
[1735544903072,6.64360029,3422.4,3422.3,0.29276]
[1735544903976,3.43580029,3422.4,3422.3,0.29276]
[1735544904679,0.43929424,3422.4,3422.3,0.29276]
[1735544905876,8.85359169,3422.8,3422.4,0.29276]
[1735544905877,3.43971676,3422.5,3422.4,0.29276]
[1735544907180,3.43971676,3422.6,3422.5,0.29275]
[1735544908485,0.43929424,3422.7,3422.1,5.31632433]
[1735544908682,0.43929424,3422.7,3422.6,0.29274]
[1735544909786,5.00886368,3422.7,3422.1,4.58437433]
[1735544909980,3.2078,3422.3,3422.1,4.58437433]
[1735544910181,0.8862,3422.2,3422.1,4.58437433]
[1735544910382,1.17897,3422.2,3422.1,4.58437433]
[1735544911388,6.18783368,3422.2,3421.8,0.7048]
[1735544911589,0.4105,3422.1,3421.5,8.0304178]
[1735544911887,0.70329,3422.1,3421.6,0.29282]
[1735544912283,0.4105,3422.1,3421.5,8.21497433]
[1735544912491,2.29285281,3421.7,3421.5,8.21497433]
[1735544912991,2.29285281,3421.7,3421.5,8.50780433]
[1735544913994,3.43927922,3421.8,3421.6,0.29282]
[1735544915092,3.43927922,3421.8,3421.7,0.29281]
[1735544916495,2.29048247,3421.8,3421.7,0.29281]
[1735544917592,2.29048247,3421.8,3421.5,3.2078]
[1735544917593,2.58329247,3421.8,3421.5,3.2078]
[1735544917787,2.29048247,3421.8,3421.5,3.50063]
[1735544918091,0.29282,3421.7,3421.5,3.50063]
[1735544918389,0.4199,3421.6,3421.5,3.50063]
[1735544918591,3.15888247,3421.6,3421.5,3.50063]
[1735544919697,0.8684,3421.6,3421.5,3.50063]
[1735544920803,0.8684,3421.6,3421.5,0.29283]
[1735544921294,0.8684,3421.6,3421.1,0.4295]
[1735544921495,1.59522,3421.6,3421.4,0.29284]
[1735544921702,1.3024,3421.6,3421.3,0.29284]
[1735544921900,0.29283,3421.5,3421.3,0.29284]
[1735544922097,0.29285,3421.3,3421.1,0.29287]
[1735544922293,0.29286,3421.2,3421.0,4.58437433]
[1735544922696,0.4103,3421.1,3420.7,4.58437433]
[1735544922901,0.4219,3421.0,3420.9,0.29288]
[1735544923801,0.4103,3421.1,3421.0,0.29287]
[1735544924001,3.2078,3421.3,3420.7,6.91897031]
[1735544924200,3.2078,3421.3,3421.2,0.29286]
[1735544926898,3.2078,3421.3,3420.6,0.8996]
[1735544927098,3.2078,3421.3,3420.9,0.29288]
[1735544927099,0.29286,3421.2,3420.9,0.29288]
[1735544927506,0.4244,3421.1,3420.9,0.29288]
[1735544927697,0.4244,3421.1,3421.0,0.29287]
[1735544928303,0.4244,3421.1,3420.6,0.8996]
[1735544929002,0.29288,3421.0,3420.7,0.29289]
[1735544929200,3.6215,3420.9,3420.7,0.29289]
[1735544929503,0.29289,3420.8,3420.5,0.29292]
[1735544930501,3.91439,3420.9,3420.6,0.29291]
[1735544930908,0.2929,3420.8,3420.5,0.29291]
[1735544932405,3.6215,3420.9,3420.5,0.29291]
[1735544932604,2.33459598,3420.8,3419.9,0.29296]
[1735544932904,0.29296,3420.1,3419.8,0.29297]
[1735544933095,1.14796,3420.0,3419.7,3.94468]
[1735544933300,0.855,3420.0,3419.7,3.6517]
[1735544933503,0.29297,3419.9,3419.7,0.4439]
[1735544933702,4.0628,3420.0,3419.6,4.58437433]
[1735544934004,0.29298,3419.8,3419.3,0.4439]
[1735544934207,3.2078,3419.5,3419.3,0.73691]
[1735544934508,3.2078,3419.5,3419.4,0.29301]
[1735544935406,3.2078,3419.9,3419.3,0.4439]
[1735544935609,3.2078,3419.9,3419.8,0.29298]
[1735544935904,3.2078,3419.9,3419.7,0.29298]
[1735544936102,3.2078,3419.9,3419.4,0.29301]
[1735544936405,3.2078,3419.9,3419.8,0.29298]
[1735544936605,3.2078,3419.9,3419.6,0.29299]
[1735544936811,3.2078,3419.9,3419.3,0.4439]
[1735544936999,3.2078,3419.5,3419.4,0.29301]
[1735544942805,0.855,3420.0,3419.4,0.29301]
[1735544942806,3.2078,3420.1,3419.4,8.50359598]
[1735544943122,2.28616561,3420.3,3420.2,0.29292]
[1735544943816,2.28616561,3420.3,3420.2,2.62751598]
[1735544944012,2.28616561,3421.2,3421.1,0.29285]
[1735544945720,2.28616561,3421.7,3421.6,0.2928]
[1735544946920,2.71056561,3421.8,3421.7,0.2928]
[1735544948425,0.4244,3421.8,3421.7,0.2928]
[1735544950124,0.4244,3421.8,3421.6,0.2928]
[1735544950722,0.4244,3421.8,3421.5,0.29281]
[1735544950918,2.27870741,3421.7,3421.5,0.29281]
[1735544951124,2.27870741,3421.7,3421.6,0.2928]
[1735544951627,2.27870741,3421.7,3421.5,0.29281]
[1735544952027,2.27870741,3421.7,3421.0,0.4552]
[1735544952927,2.27870741,3421.7,3421.4,0.29281]
[1735544953128,2.27870741,3421.7,3421.0,0.4552]
[1735544953329,2.27870741,3421.6,3421.0,0.4552]
[1735544953531,2.27870741,3421.6,3421.4,0.29281]
[1735544954726,2.27870741,3421.5,3421.4,0.29281]
[1735544956525,2.27870741,3421.5,3421.4,2.62740598]
[1735544956732,2.27870741,3421.5,3421.4,0.29281]
[1735544958630,2.27870741,3421.7,3421.6,0.29281]
[1735544959225,2.27870741,3421.7,3421.6,1e-05]
[1735544959623,2.27870741,3421.7,3421.6,0.29282]
[1735544961338,3.87517922,3421.9,3421.8,0.29279]
[1735544962638,2.71869977,3421.9,3421.8,0.29279]
[1735544963636,0.4359,3421.9,3421.8,0.29279]
[1735544963933,0.4359,3421.9,3421.7,3.2078]
[1735544964138,0.4424,3421.8,3421.6,1e-05]
[1735544964337,0.4424,3421.8,3421.7,0.2928]
[1735544966541,3.6502,3421.8,3421.7,0.2928]
[1735544967242,3.943,3421.8,3421.6,1e-05]
[1735544967437,0.4368,3421.7,3421.6,1e-05]
[1735544967643,0.4368,3421.7,3421.6,0.29282]
[1735544967940,3.6502,3421.8,3421.7,0.2928]
[1735544967941,0.43939641,3421.8,3421.7,0.2928]
[1735544968242,0.43939641,3421.8,3421.7,3.05879598]
[1735544968433,0.43939641,3421.8,3421.7,3.49479598]
[1735544969342,2.2835676,3421.9,3421.8,0.29279]
[1735544971648,3.4253514,3422.2,3422.1,0.29276]
[1735544971649,2.2835676,3422.2,3422.1,0.29276]
[1735544971945,2.2835676,3422.2,3422.1,3.50056]
[1735544973250,2.2835676,3422.4,3422.3,0.29275]
[1735544973445,2.46660215,3422.4,3422.3,0.29275]
[1735544974945,0.29275,3422.3,3422.1,3.50056]
[1735544975149,0.18303455,3422.2,3422.1,3.2078]
[1735544976347,0.62234881,3422.2,3422.1,3.2078]
[1735544977447,0.18303455,3422.2,3422.1,3.50056]
[1735544979350,0.18303455,3422.2,3422.1,3.20776]
[1735544980451,0.47579455,3422.2,3422.1,2.915]
[1735544980951,0.47580853,3422.2,3422.1,2.915]
[1735544981353,0.91512005,3422.2,3422.1,2.915]
[1735544981552,1.36954423,3422.2,3422.1,2.915]
[1735544981742,0.91512005,3422.2,3422.1,2.915]
[1735544982446,0.47580515,3422.2,3421.6,1e-05]
[1735544982646,0.4544564,3422.0,3421.8,3.2078]
[1735544982849,0.18304515,3421.9,3421.8,3.50059]
[1735544983051,0.8832564,3422.0,3421.9,0.29278]
[1735544983256,0.61184569,3422.0,3421.9,0.29278]
[1735544983557,1.06630209,3422.0,3421.9,0.29278]
[1735544986258,4.49165349,3422.0,3421.9,0.29278]
[1735544986655,4.03719709,3422.0,3421.9,0.29278]
[1735544987057,4.03719997,3422.0,3421.9,0.29278]
[1735544987954,4.03719997,3422.0,3421.8,3.2078]
[1735544988161,0.63794595,3421.9,3421.7,0.29279]
[1735544988456,0.4451,3421.8,3421.7,0.29279]
[1735544988659,1.08304595,3421.8,3421.7,0.29279]
[1735544988959,0.62814857,3421.8,3421.7,0.29279]
[1735544989560,1.06748404,3421.8,3421.7,0.29279]
[1735544990162,1.06749391,3421.8,3421.7,0.29279]
[1735544990460,1.52243144,3421.8,3421.7,0.29279]
[1735544990656,0.88443547,3421.8,3421.7,0.29279]
[1735544990956,6.09202273,3421.8,3421.7,0.29279]
[1735544991154,5.45400491,3421.8,3421.7,0.29279]
[1735544992158,5.63706318,3421.8,3421.7,0.29279]
[1735544993356,5.63706421,3421.8,3421.7,0.29279]
[1735544993555,0.2928,3421.7,3421.6,1e-05]
[1735544993860,0.4758593,3421.7,3421.6,1e-05]
[1735544995255,6.24428745,3421.7,3421.6,1e-05]
[1735544996161,6.06122815,3421.7,3421.6,1e-05]
[1735544998862,5.76842815,3421.7,3421.6,1e-05]
[1735544999255,6.22269005,3421.7,3421.6,1e-05]
[1735544999464,11.49290039,3421.7,3421.6,1e-05]
[1735544999666,11.94714454,3421.7,3421.6,1e-05]
[1735544999966,12.23990775,3421.7,3421.6,1e-05]
[1735545000160,11.78570039,3421.7,3421.6,1e-05]
[1735545001965,6.06122815,3421.7,3421.6,1e-05]
[1735545003064,0.2928,3421.7,3421.6,1e-05]
[1735545004570,11.78308583,3421.7,3421.6,1e-05]
[1735545008171,14.99088583,3421.7,3421.6,1e-05]
[1735545011070,19.99088583,3421.7,3421.6,1e-05]
[1735545011265,14.99088583,3421.7,3421.6,1e-05]
[1735545011773,3.5006,3421.7,3421.6,1e-05]
[1735545013370,9.605256,3421.7,3421.6,1e-05]
[1735545013672,9.15084601,3421.7,3421.6,1e-05]
[1735545014072,9.60530937,3421.7,3421.6,1e-05]
[1735545014376,9.15084601,3421.7,3421.6,1e-05]
[1735545016976,3.94005023,3421.7,3421.6,1e-05]
[1735545018473,4.39446066,3421.7,3421.6,1e-05]
[1735545018776,3.95501043,3421.7,3421.6,1e-05]
[1735545019278,3.5006,3421.7,3421.6,1e-05]
[1735545019479,3.95507098,3421.7,3421.6,1e-05]
[1735545019668,3.50061,3421.7,3421.6,1e-05]
[1735545019981,8.51681226,3421.7,3421.6,1e-05]
[1735545020578,8.40709011,3421.7,3421.6,1e-05]
[1735545020767,8.69989011,3421.7,3421.6,1e-05]
[1735545021174,8.40709011,3421.7,3421.6,1e-05]
[1735545021472,8.40709011,3421.7,3421.6,0.29282]
[1735545021673,5.19929011,3421.7,3421.6,2.62741598]
[1735545021871,5.01620226,3421.7,3421.6,5.83521598]
[1735545022174,5.1992502,3421.7,3421.6,5.83521598]
[1735545022376,1.3591189,3421.7,3421.6,10.83521598]
[1735545022575,1.0676189,3421.7,3421.6,10.83521598]
[1735545023780,3.43345645,3422.2,3421.6,17.73527085]
[1735545024079,3.43345645,3422.2,3422.1,0.29276]
[1735545027981,3.43345645,3422.3,3422.2,0.29275]
[1735545029181,6.64125645,3422.4,3422.3,0.29275]
[1735545029381,6.64125645,3422.4,3422.0,0.29276]
[1735545029583,1.15595,3422.3,3422.0,0.29276]
[1735545029786,0.426,3422.2,3421.9,4.59844588]
[1735545029986,3.50057,3422.0,3421.9,4.59844588]
[1735545030388,3.68363645,3422.0,3421.9,4.59844588]
[1735545030579,0.2928,3421.7,3421.6,4.59845588]
[1735545030780,0.47586645,3421.7,3421.6,4.59845588]
[1735545031985,0.91518945,3421.7,3421.6,1e-05]
[1735545033785,0.62238945,3421.7,3421.6,1e-05]
[1735545034484,0.91518945,3421.7,3421.6,1e-05]
[1735545034788,0.73211277,3421.7,3421.6,1e-05]
[1735545035283,1.09827215,3421.7,3421.6,1e-05]
[1735545036485,0.80547215,3421.7,3421.6,1e-05]
[1735545036688,1.26067215,3421.7,3421.6,1e-05]
[1735545037491,4.69076385,3421.7,3421.6,1e-05]
[1735545037884,4.98356385,3421.7,3421.6,1e-05]
[1735545038083,4.98355285,3421.7,3421.6,1e-05]
[1735545038692,4.98355936,3421.7,3421.6,1e-05]
[1735545040090,1.55346766,3421.7,3421.6,1e-05]
[1735545040690,1.26066766,3421.7,3421.6,1e-05]
[1735545041191,0.82135489,3421.7,3421.6,1e-05]
[1735545042389,4.69120386,3421.7,3421.6,1e-05]
[1735545042590,4.69120386,3421.7,3421.6,0.29282]
[1735545043487,4.05292866,3421.7,3421.6,0.29282]
[1735545044388,3.86984897,3421.7,3421.6,0.29282]
[1735545044790,3.4305362,3421.9,3421.6,1e-05]
[1735545044992,3.4305362,3421.9,3421.8,0.29279]
[1735545045294,3.61358589,3421.9,3421.8,0.29279]
[1735545045486,4.35787589,3421.9,3421.7,0.29279]
[1735545045686,3.8820362,3421.9,3421.7,0.29279]
[1735545045886,0.1830598,3421.8,3421.7,0.2928]
[1735545047083,0.89083059,3421.9,3421.6,1e-05]
[1735545047392,0.43933059,3421.8,3421.7,0.2928]
[1735545047596,0.62238546,3421.8,3421.7,0.2928]
[1735545048993,3.83018546,3421.8,3421.7,0.2928]
[1735545049297,3.83018546,3421.8,3421.6,1e-05]
[1735545049484,3.64713059,3421.8,3421.7,0.2928]
[1735545049794,3.8301913,3421.8,3421.7,0.2928]
[1735545050288,3.8301901,3421.8,3421.7,0.2928]
[1735545052589,3.64713059,3421.8,3421.7,0.2928]
[1735545053393,0.43933059,3421.8,3421.7,0.2928]
[1735545054294,3.87149284,3421.8,3421.7,2.33459598]
[1735545054494,3.87149284,3421.8,3421.7,7.62739598]
[1735545054901,3.87149284,3421.8,3421.7,2.62739598]
[1735545055595,4.28599284,3422.2,3421.7,2.33459598]
[1735545055801,0.1830322,3422.1,3422.0,0.29277]
[1735545056498,4.28599284,3422.2,3421.9,0.29278]
[1735545056700,4.28599284,3422.2,3422.1,0.29276]
[1735545056904,4.46902525,3422.2,3422.1,0.29276]
[1735545057098,0.59753241,3422.2,3422.1,0.29276]
[1735545059402,0.5975303,3422.2,3422.1,0.29276]
[1735545059600,1.03680756,3422.2,3422.1,0.29276]
[1735545061098,1.03680756,3422.2,3421.5,0.23820545]
[1735545061099,0.29276,3422.1,3421.5,0.23820545]
[1735545061401,1.14653726,3422.2,3421.8,1.167]
[1735545061704,1.14653726,3422.2,3421.9,0.29278]
[1735545062207,1.14653726,3422.2,3421.8,1.167]
[1735545062208,0.43927726,3422.1,3422.0,0.29277]
[1735545063099,0.62231485,3422.1,3421.8,1.167]
[1735545063407,0.18303759,3422.0,3421.9,0.29277]
[1735545064105,0.43927726,3422.1,3422.0,0.29277]
[1735545064301,0.62232119,3422.1,3421.8,1.16677]
[1735545064503,0.73204726,3422.1,3421.9,0.29277]
[1735545064798,0.43927726,3422.0,3421.9,0.29277]
[1735545065700,0.43927726,3422.1,3421.9,0.29277]
[1735545066405,0.43927726,3422.1,3422.0,0.29277]
[1735545066998,5.01477714,3422.1,3422.0,0.29277]
[1735545069409,5.01477714,3422.1,3421.8,1.16677]
[1735545069609,0.18304022,3422.0,3421.9,0.29278]
[1735545070710,0.18303993,3422.0,3421.9,0.29278]
[1735545071207,0.62231719,3422.0,3421.9,0.29278]
[1735545072512,0.62230968,3422.0,3421.9,0.29278]
[1735545073715,0.62231214,3422.0,3421.9,0.29278]
[1735545074311,0.62231214,3422.0,3421.8,1.16677]
[1735545074312,0.62231214,3422.0,3421.8,1.16655]
[1735545074509,0.18303488,3421.9,3421.8,1.16655]
[1735545075005,0.18303488,3421.9,3421.8,1.45934]
[1735545075307,0.62231214,3421.9,3421.8,1.45934]
[1735545075901,0.43927726,3421.9,3421.8,1.45934]
[1735545076207,0.62231603,3421.9,3421.8,1.45934]
[1735545076805,0.43927726,3421.9,3421.8,1.45934]
[1735545077305,3.64707726,3421.9,3421.1,2.33459598]
[1735545077603,0.4276,3421.8,3421.0,3.44613765]
[1735545078004,0.29285,3421.3,3421.0,3.50066]
[1735545078212,1.3047,3421.2,3421.0,3.50066]
[1735545080209,0.29287,3420.9,3420.6,4.3748]
[1735545080410,3.2078,3421.1,3420.6,3.2078]
[1735545080609,0.29289,3420.7,3420.6,3.2078]
[1735545080809,0.29289,3420.8,3420.6,3.2078]
[1735545081210,0.4421,3420.7,3420.6,3.2078]
[1735545082004,4.32056075,3420.7,3420.6,3.2078]
[1735545082912,3.88112369,3420.7,3420.6,3.2078]
[1735545083506,0.4421,3420.7,3420.6,3.2078]
[1735545086401,3.43902369,3420.8,3420.7,0.29289]
[1735545086611,3.43902369,3420.8,3420.7,2.62748598]
[1735545087203,7.09382369,3421.1,3421.0,0.29286]
[1735545088112,7.09382369,3421.1,3420.9,0.29287]
[1735545088303,3.6548,3421.1,3420.9,0.29287]
[1735545088711,0.8842,3421.2,3420.7,2.33459598]
[1735545089014,0.8842,3421.2,3421.1,0.29285]
[1735545089217,4.32322369,3421.2,3421.1,0.29285]
[1735545090212,0.8842,3421.2,3421.1,0.29285]
[1735545093209,0.8842,3421.2,3421.0,0.29285]
[1735545093411,4.32322369,3421.2,3421.0,0.29285]
[1735545093611,4.32322369,3421.2,3420.7,2.33459598]
[1735545094222,4.32322369,3421.2,3420.8,0.29287]
[1735545094514,4.32322369,3421.2,3421.0,0.29285]
[1735545095114,4.32322369,3421.2,3421.0,2.33459598]
[1735545095320,4.32322369,3421.2,3421.1,0.29285]
[1735545095921,3.43902369,3421.2,3421.1,0.29285]
[1735545096127,3.88732369,3421.4,3421.3,0.29283]
[1735545096417,3.88732369,3421.4,3421.3,2.62742598]
[1735545096612,3.43902369,3421.4,3421.3,2.62742598]
[1735545097215,7.78329988,3421.6,3421.3,2.33459598]
[1735545097216,3.43902369,3421.5,3421.3,2.33459598]
[1735545097419,3.43902369,3421.5,3421.4,0.29282]
[1735545098613,3.73184369,3421.5,3421.2,0.29283]
[1735545099114,3.43902369,3421.5,3421.1,1.167]
[1735545099319,3.2078,3421.6,3421.1,1.167]
[1735545099320,3.73184369,3421.4,3421.1,1.167]
[1735545099517,0.8646,3421.3,3421.1,1.167]
[1735545099823,0.8646,3421.3,3421.0,0.29285]
[1735545100019,0.4283,3421.2,3421.0,0.29285]
[1735545100417,0.4283,3421.2,3421.1,0.29285]
[1735545100617,0.72114,3421.2,3420.9,0.29286]
[1735545100819,0.4283,3421.2,3420.9,0.29286]
[1735545101327,0.4283,3421.2,3420.7,2.33459598]
[1735545101521,3.86732369,3421.2,3421.0,0.29286]
[1735545102721,0.29287,3420.9,3420.5,3.50069]
[1735545104726,3.43902369,3421.0,3420.5,3.2078]
[1735545105027,0.29288,3420.8,3420.5,3.5007]
[1735545105222,0.8773,3420.7,3420.5,3.5007]
[1735545105424,1.3263,3420.7,3420.5,3.5007]
[1735545106324,1.3263,3420.7,3420.6,0.29289]
[1735545110132,1.3263,3420.7,3420.5,3.5007]
[1735545112933,1.3263,3420.7,3420.6,0.29289]
[1735545113329,1.3263,3420.7,3420.5,3.2078]
[1735545113632,1.3263,3420.7,3420.6,0.29289]
[1735545114137,0.4392,3420.7,3420.6,0.29289]
[1735545115322,0.8717,3421.0,3420.5,3.2078]
[1735545115527,0.8717,3421.0,3420.9,2.62745598]
[1735545118931,0.8717,3421.0,3420.9,0.29286]
[1735545119340,4.75012499,3421.0,3420.9,0.29286]
[1735545120438,1.3111013,3421.0,3420.9,0.29286]
[1735545121339,1.3111013,3421.0,3420.8,0.29287]
[1735545121730,1.3111013,3421.0,3420.7,0.29287]
[1735545122339,0.29288,3420.8,3420.5,4.66769]
[1735545122540,0.29288,3420.8,3420.5,4.3748]
[1735545122739,3.72689406,3420.8,3420.5,4.3748]
[1735545123441,3.72689406,3420.8,3420.5,4.6677]
[1735545123643,3.87341536,3420.7,3420.5,3.5007]
[1735545124040,3.87341536,3420.7,3420.5,3.2078]
[1735545124542,4.16629536,3420.7,3420.5,3.2078]
[1735545124936,3.43401406,3420.6,3420.5,3.2078]
[1735545125543,3.43401406,3420.6,3420.5,3.5007]
[1735545126847,3.43401406,3420.6,3420.5,3.2078]
[1735545127841,0.29291,3420.4,3420.1,3.50073]
[1735545128149,0.4489,3420.3,3420.1,3.2078]
[1735545128354,0.44677757,3420.3,3420.1,3.2078]
[1735545129454,3.87341536,3420.2,3420.1,3.2078]
[1735545129653,3.87341536,3420.2,3420.1,3.50073]
[1735545130053,3.87341536,3420.2,3420.1,3.2078]
[1735545130255,3.87341536,3420.2,3420.1,3.50073]
[1735545130661,3.43401406,3420.2,3420.1,3.50073]
[1735545132457,0.44677757,3420.3,3420.1,3.50073]
[1735545132458,0.44677757,3420.3,3420.2,0.29292]
[1735545134657,3.88079163,3420.3,3420.2,0.29292]
[1735545135263,3.88079163,3420.3,3420.1,3.2078]
[1735545135561,3.88079163,3420.3,3420.1,3.50073]
[1735545135768,0.44677757,3420.3,3420.1,3.2078]
[1735545136762,3.88079163,3420.3,3420.1,3.2078]
[1735545138164,0.29292,3420.2,3420.1,3.2078]
[1735545138760,3.2078,3420.2,3419.7,3.2078]
[1735545138967,3.2078,3420.2,3419.2,1.167]
[1735545138968,0.29297,3419.7,3419.3,3.5008]
[1735545139266,0.8763,3419.6,3419.3,3.5008]
[1735545139467,0.8763,3419.6,3419.4,0.29299]
[1735545139857,0.8763,3419.6,3419.5,0.29298]
[1735545143164,0.8763,3419.6,3419.4,2.33459598]
[1735545143370,0.8763,3419.6,3419.4,0.29299]
[1735545143891,0.8763,3419.6,3419.3,1.167]
[1735545144476,0.8763,3419.6,3419.5,0.29298]
[1735545145169,0.8763,3419.6,3419.5,0.73278]
[1735545145366,0.4317,3419.6,3419.5,3.94058]
[1735545145572,2.28724488,3419.7,3419.6,0.29298]
[1735545145765,3.43401406,3419.9,3419.5,3.6476]
[1735545145766,1.49700181,3419.9,3419.5,3.6476]
[1735545146074,1.31059022,3419.9,3419.8,2.62755598]
[1735545146871,0.8427,3420.2,3419.8,2.33459598]
[1735545147071,0.8427,3420.2,3420.1,0.29293]
[1735545149279,0.4106,3420.2,3420.1,0.29293]
[1735545149480,3.43401406,3420.3,3420.1,3.50159598]
[1735545149680,3.43401406,3420.3,3420.2,0.29292]
[1735545149974,0.4191,3420.6,3420.5,0.2929]
[1735545150372,0.4191,3420.6,3420.1,1.167]
[1735545150373,0.4191,3420.6,3420.3,0.29291]
[1735545150580,0.4159,3420.5,3420.4,0.29291]
[1735545153473,0.4191,3420.6,3420.5,0.2929]
[1735545163377,0.4191,3420.6,3420.2,1.40583662]
[1735545163577,0.4191,3420.6,3420.3,0.29291]
[1735545163978,0.4277,3420.5,3420.3,0.29291]
[1735545166590,0.4277,3420.5,3420.2,1.40583662]
[1735545167091,0.4277,3420.5,3420.4,0.29291]
[1735545169880,0.4277,3420.5,3420.0,4.816]
[1735545170074,0.72061,3420.5,3420.1,0.29293]
[1735545170278,4.15178014,3420.5,3420.1,0.29293]
[1735545170686,4.15178014,3420.5,3420.1,2.62752598]
[1735545170885,3.85887014,3420.5,3420.2,0.29292]
[1735545171387,0.4277,3420.5,3420.3,0.29291]
[1735545171683,0.7206,3420.5,3420.1,0.29293]
[1735545172784,0.29293,3420.1,3420.0,3.2078]
[1735545172981,0.29295,3420.0,3419.6,4.3748]
[1735545173187,0.29295,3419.9,3419.6,3.2078]
[1735545173382,1.18254,3420.0,3419.6,3.50078]
[1735545173688,1.18254,3420.0,3419.6,3.2078]
[1735545173882,1.18254,3420.0,3419.6,3.50077]
[1735545174485,0.8896,3420.0,3419.6,3.73898313]
[1735545175091,0.8896,3420.0,3419.6,3.2078]
[1735545175288,1.18255,3420.0,3419.6,3.50078]
[1735545175485,0.8896,3420.0,3419.6,3.50078]
[1735545175784,0.8896,3420.0,3419.7,0.29296]
[1735545176182,0.4169,3419.9,3419.7,0.29296]
[1735545176584,0.4169,3419.9,3419.6,3.2078]
[1735545176794,0.4169,3419.9,3419.8,0.29296]
[1735545181084,0.8896,3420.0,3419.7,3.91259598]
[1735545181289,3.43117014,3420.2,3420.1,0.29293]
[1735545181489,3.43117014,3420.2,3420.0,0.29294]
[1735545182193,3.43117014,3420.2,3419.7,1.578]
[1735545182389,0.8759,3420.3,3420.1,0.29293]
[1735545182390,4.30707014,3420.3,3420.1,0.29293]
[1735545184496,0.4178,3420.2,3420.1,0.29293]